lending/lending_fUSD_20240806
["ID","MTS","AMOUNT","RATE_DAILY","PERIOD"]
[334313057,1722949840035,-405.4218586,0.00010723,2]
[334313058,1722949840097,-405.5781414,0.00010723,2]
[334313059,1722949840106,-446.0,0.00010723,2]
[334313060,1722949840117,-537.79005467,0.00010723,2]
[334313066,1722949840161,-494.01994533,0.00010723,2]
[334313067,1722949840170,-56.4025638,0.00010723,2]
[334313068,1722949840182,-292.5974362,0.00010723,2]
[334313069,1722949840191,-1554.952,0.00010723,2]
[334313070,1722949840200,-150.0,0.00010723,2]
[334313071,1722949840210,-2215.48243186,0.00010723,2]
[334313072,1722949840221,-2909.51756814,0.00010723,2]
[334313073,1722949840231,-1109.57371148,0.00010723,2]
[334313074,1722949840242,-315.6,0.00010723,2]
[334313084,1722949842769,-302.790542,9.948e-05,2]
[334313085,1722949842778,-80.29951576,0.00010723,2]
[334313086,1722949842829,-1238.77345154,0.00010723,2]
[334313087,1722949842840,-6797.43432122,0.00010723,2]
[334313088,1722949842850,-150.0,0.00010723,2]
[334313089,1722949842860,-1203.0,0.00010723,2]
[334313090,1722949842872,-1075.0,0.00010723,2]
[334313091,1722949842883,-175.10094526,0.000109,2]
[334313092,1722949842893,-22061.41250841,0.000109,2]
[334313093,1722949842903,-393.07019885,0.000109,2]
[334313094,1722949842913,-363.42287484,0.000109,2]
[334313095,1722949842923,-1203.6948311,0.000109,2]
[334313096,1722949842933,-6652.939,0.000109,2]
[334313097,1722949842942,-779.09167832,0.00010994,2]
[334313098,1722949842953,-1718.0901106,0.00010994,2]
[334313099,1722949842963,-274.073106,0.00010999,2]
[334313100,1722949842973,-488.17311517,0.00010999,2]
[334313101,1722949842984,-498.02341338,0.00010999,2]
[334313102,1722949842995,-52062.19032884,0.00011,2]
[334313103,1722949843109,-314.105432,0.00011,2]
[334313137,1722949846033,-2100.0,0.0001089,2]
[334313141,1722949846365,-200.7521,0.0001089,2]
[334313142,1722949846375,-542.6002116,0.00011,2]
[334313145,1722950269755,243.81,8.219e-05,2]
[334313146,1722950333678,291.36870266,8.219e-05,2]
[334313147,1722950338102,155.0,8.219e-05,2]
[334313148,1722950342971,485.35658426,8.219e-05,2]
[334313150,1722950349439,871.55601316,8.219e-05,2]
[334313151,1722950349503,1531.80230725,8.219e-05,2]
[334313152,1722950360200,180.0,0.00027,120]
[334313153,1722950364750,694.23595745,8.219e-05,2]
[334313157,1722950783651,231.61,8.219e-05,2]
[334313420,1722950968929,-250.0,9.604e-05,2]
[334313421,1722950969362,-557.09181095,9.648e-05,2]
[334313431,1722951032038,-186.90818905,9.648e-05,2]
[334313432,1722951032048,-412.76630026,0.0001,2]
[334313433,1722951032057,-120.74534634,0.0001007,2]
[334313434,1722951032069,-43.93465366,0.0001007,2]
[334313436,1722951032079,-164.68,0.00010076,2]
[334313438,1722951032088,-388.72762541,0.00010082,2]
[334313440,1722951032100,-1465.61333131,0.00010082,2]
[334313441,1722951032109,-164.68,0.00010082,2]
[334313442,1722951032118,-164.68,0.00010089,2]
[334313443,1722951032129,-164.68,0.00010095,2]
[334313444,1722951032138,-164.68,0.00010101,2]
[334313445,1722951032148,-339.99,0.00010105,2]
[334313446,1722951032158,-256.0,0.00010105,2]
[334313447,1722951032168,-164.68,0.00010107,2]
[334313448,1722951032177,-164.68,0.00010114,2]
[334313449,1722951032186,-164.68,0.0001012,2]
[334313450,1722951032196,-150.02,0.00010272,2]
[334313451,1722951032206,-231.61,0.00010458,2]
[334313452,1722951032215,-300.0,0.00010499,2]
[334313453,1722951032224,-150.0,0.00010499,2]
[334313454,1722951032234,-7960.42376028,0.000105,2]
[334313455,1722951032253,-450.44936041,0.000105,2]
[334313456,1722951032265,-881.53611486,0.000105,2]
[334313457,1722951032292,-3800.0,0.000105,2]
[334313458,1722951032304,-697.89036063,0.000105,2]
[334313517,1722951037982,-50011.64502328,0.000105,2]
[334313518,1722951038114,-1270.89616337,0.000105,2]
[334313519,1722951038126,-373.6491406,0.000105,2]
[334313576,1722951041989,-346.55818592,0.000105,2]
[334313577,1722951042001,-6247383.64264055,0.000105,2]
[334313578,1722951042012,-19836.69555511,0.000105,2]
[334313630,1722951043058,-801.95718324,0.000105,2]
[334313631,1722951043069,-569.33664,0.000105,2]
[334313645,1722951046247,-138080.83794013,0.000105,2]
[334313660,1722951285505,208.44,8.219e-05,2]
[334313663,1722951745095,899.39,0.00024657,120]
[334313664,1722951745370,899.39,0.00025479,120]
[334313665,1722951745675,899.39,0.00026301,120]
[334313666,1722951781391,198.01,8.219e-05,2]
[334313674,1722952177154,-245.1776187,9.677e-05,2]
[334313707,1722952232132,-643.41,9.577e-05,2]
[334313709,1722952232142,-4.8223813,9.677e-05,2]
[334313711,1722952232151,-398.0,9.825e-05,2]
[334313713,1722952232160,-324.01491319,9.825e-05,2]
[334313716,1722952232219,-877.55558953,9.825e-05,2]
[334313717,1722952232229,-595.2,9.826e-05,2]
[334313718,1722952232238,-150.02,9.94e-05,2]
[334313719,1722952232247,-667.48724783,9.962e-05,2]
[334313720,1722952232257,-47.85433294,9.986e-05,2]
[334313721,1722952232268,-356.94566706,9.986e-05,2]
[334313722,1722952232278,-163.34,0.00010078,2]
[334313723,1722952232287,-834.77,0.000101,2]
[334313724,1722952232296,-300.0,0.00010379,2]
[334313725,1722952232306,-300.0,0.00010379,2]
[334313726,1722952232315,-1002.18,0.0001038,2]
[334313727,1722952232324,-97.63403724,0.0001038,2]
[334313728,1722952232335,-902.36596276,0.0001038,2]
[334313729,1722952232345,-803.06,0.0001038,2]
[334313730,1722952232355,-150.0,0.00010399,2]
[334313732,1722952232364,-300.0,0.00010399,2]
[334313734,1722952232373,-161.93515839,0.000104,2]
[334313735,1722952232384,-313.17094161,0.000104,2]
[334313736,1722952232393,-173.5900964,0.000104,2]
[334313737,1722952232402,-1500.0,0.000104,2]
[334313738,1722952232411,-1500.0,0.000104,2]
[334313739,1722952232421,-1500.0,0.000104,2]
[334313740,1722952232431,-1500.0,0.000104,2]
[334313741,1722952232440,-1500.0,0.000104,2]
[334313742,1722952232449,-1674.5149471,0.000104,2]
[334313743,1722952232465,-74.8250529,0.000104,2]
[334313744,1722952232474,-1500.0,0.000104,2]
[334313745,1722952232483,-779.90757161,0.000104,2]
[334313746,1722952232495,-453.51,0.000104,2]
[334313747,1722952232506,-266.58242839,0.000104,2]
[334313748,1722952232515,-1500.0,0.000104,2]
[334313749,1722952232524,-1500.0,0.000104,2]
[334313750,1722952232534,-213.1609,0.000104,2]
[334313751,1722952232543,-329.54,0.000104,2]
[334313752,1722952232552,-1123.0237,0.000104,2]
[334313753,1722952232560,-778.68045854,0.000104,2]
[334313754,1722952232572,-3832.64287863,0.000104,2]
[334313755,1722952232583,-879.73246283,0.000104,2]
[334313756,1722952232592,-2407.38966216,0.000104,2]
[334313757,1722952232602,-1486.51705408,0.000104,2]
[334313758,1722952232611,-198.01,0.0001047,2]
[334313759,1722952232620,-445.75,0.00010477,2]
[334313760,1722952232630,-5107.67172331,0.0001049,2]
[334313761,1722952232639,-3673.23434991,0.000105,2]
[334313762,1722952232655,-505.95034743,0.000105,2]
[334313763,1722952232666,-858.16390953,0.000105,2]
[334313768,1722952238124,-747.5384845,0.000105,2]
[334313769,1722952238136,-1393.41253977,0.000105,2]
[334313770,1722952238147,-425.4,0.000105,2]
[334313771,1722952238163,-2603.10643675,0.000105,2]
[334313772,1722952238174,-5556.73676619,0.000105,2]
[334313773,1722952238185,-187539.03069658,0.000105,2]
[334313774,1722952238242,-42734.02782278,0.000105,2]
[334313786,1722952241983,-6172.14121607,0.000104,2]
[334313787,1722952241994,-4108.03275737,0.000104,2]
[334313788,1722952242004,-236822.60874626,0.000105,2]
[334313789,1722952242016,-1944.34995429,0.000105,2]
[334313845,1722952243197,-250.9677,0.000104,2]
[334313846,1722952243207,-114.13020902,0.000105,2]
[334313847,1722952243235,-1.33725808,0.000105,2]
[334313848,1722952243278,-1279.12517518,0.000105,2]
[334313849,1722952243292,-178905.24882099,0.000105,2]
[334313850,1722952243303,-977.79543901,0.000105,2]
[334313854,1722952243667,-2826.00655264,0.000105,2]
[334313855,1722952243683,-5246.52081703,0.000105,2]
[334313879,1722952246338,-155.18093298,9.677e-05,2]
[334313880,1722952246348,-341.39172086,0.000104,2]
[334313881,1722952246358,-824.82962866,0.000105,2]
[334313882,1722952246369,-1869.3662922,0.000105,2]
[334313883,1722952246380,-4431.09,0.000105,2]
[334313884,1722952246391,-1234.71882361,0.000105,2]
[334313885,1722952246436,-592.20419882,0.000105,2]
[334313886,1722952246447,-403.53386833,0.000105,2]
[334313976,1722952252054,187.11,8.219e-05,2]
[334313977,1722952313195,7188.64330221,8.219e-05,2]
[334313978,1722952327913,3251.22971856,8.219e-05,2]
[334313980,1722952367971,786.96,0.00024657,120]
[334313981,1722952368238,786.96,0.00025479,120]
[334313982,1722952368519,786.96,0.00026301,120]
[334313983,1722952478168,752.0,8.219e-05,2]
[334313984,1722952812340,177.75,8.219e-05,2]
[334313985,1722952885222,200.0,7.524e-05,2]
[334313986,1722952907577,1004.0,0.00027,120]
[334313987,1722953005410,688.59,0.00024657,120]
[334313988,1722953005710,688.59,0.00025479,120]
[334313989,1722953006307,688.59,0.00026301,120]
[334313990,1722953312283,168.86,8.219e-05,2]
[334314013,1722953432564,-4583.46,9.826e-05,2]
[334314014,1722953432574,-285.13,9.851e-05,2]
[334314015,1722953432584,-412.86609525,9.851e-05,2]
[334314016,1722953432596,-110.97390475,9.851e-05,2]
[334314017,1722953432606,-300.0,9.897e-05,2]
[334314018,1722953432616,-200.0,9.898e-05,2]
[334314019,1722953432626,-1552.46891198,9.898e-05,2]
[334314020,1722953432643,-319.86038199,9.898e-05,2]
[334314021,1722953432823,-3272.23,9.898e-05,2]
[334314027,1722953438337,-1427.25349251,9.898e-05,2]
[334314035,1722953438439,-1606.73102151,9.898e-05,2]
[334314036,1722953438452,-6409.17039208,9.898e-05,2]
[334314037,1722953438464,-4811.47579993,9.898e-05,2]
[334314038,1722953438473,-400.0,9.905e-05,2]
[334314039,1722953438483,-476.16,9.928e-05,2]
[334314040,1722953438493,-189.76663775,0.0001,2]
[334314041,1722953438503,-420.73,0.000101,2]
[334314042,1722953438513,-1668.72,0.000101,2]
[334314043,1722953438522,-241.68276428,0.000101,2]
[334314044,1722953438539,-179.04723572,0.000101,2]
[334314045,1722953438549,-150.0,0.00010399,2]
[334314046,1722953438558,-1660.43175359,0.000104,2]
[334314047,1722953438677,-817.15530766,0.000104,2]
[334314048,1722953438688,-7252.44183269,0.000104,2]
[334314049,1722953438700,-325.88,0.000104,2]
[334314050,1722953438712,-1130.70660606,0.000104,2]
[334314051,1722953438722,-834.77,0.000104,2]
[334314052,1722953438733,-834.77,0.000104,2]
[334314053,1722953438743,-420.73,0.000104,2]
[334314055,1722953438754,-420.73,0.000104,2]
[334314057,1722953438764,-420.73,0.000104,2]
[334314058,1722953438774,-420.73,0.000104,2]
[334314059,1722953438784,-365.73604615,0.000104,2]
[334314060,1722953438794,-168.86,0.00010446,2]
[334314061,1722953438804,-916.04,0.00010499,2]
[334314062,1722953438814,-10249.04685198,0.000105,2]
[334314063,1722953438826,-1451.33807564,0.000105,2]
[334314103,1722953443281,-602.00767301,0.000105,2]
[334314106,1722953443293,-5140.33559649,0.000105,2]
[334314109,1722953443304,-854.1627159,0.000105,2]
[334314113,1722953443316,-1996.14582938,0.000105,2]
[334314116,1722953443327,-3504.1443,0.000105,2]
[334314120,1722953443338,-6885.1014996,0.000105,2]
[334314123,1722953443349,-4302.89567398,0.000105,2]
[334314126,1722953443360,-685.08301683,0.000105,2]
[334314128,1722953443371,-394.9925689,0.000105,2]
[334314133,1722953443611,-303144.61468863,0.000105,2]
[334314134,1722953443763,-1079.31918,0.000105,2]
[334314195,1722953447708,-48866.15944868,0.000105,2]
[334314196,1722953447858,-1059.12919436,0.000105,2]
[334314197,1722953447869,-345.12370564,0.000105,2]
[334314199,1722953823335,151.97,8.219e-05,2]
[334314200,1722953892650,759.9667326,8.219e-05,2]
[334314201,1722953924867,1869.0,0.00025,60]
[334314203,1722954084353,-580.92,9.894e-05,2]
[334314204,1722954084380,-200.0,9.946e-05,2]
[334314205,1722954084406,-1146.56556,9.962e-05,2]
[334314206,1722954084428,-171.38543183,0.0001,2]
[334314207,1722954084450,-181.70544246,0.0001,2]
[334314208,1722954093145,-158.95515432,0.000104,2]
[334314209,1722954093166,-2096.368,0.000104,2]
[334314210,1722954093186,-175.10094526,0.000104,2]
[334314211,1722954093206,-363.42287484,0.000104,2]
[334314212,1722954093228,-1948.90284,0.000104,2]
[334314213,1722954093248,-203.88619749,0.00010448,2]
[334314214,1722954093269,-151.97,0.00010471,2]
[334314215,1722954093289,-1412.9139165,0.0001049,2]
[334314216,1722954093310,-1989.4233932,0.00010493,2]
[334314217,1722954093330,-1997.2,0.00010493,2]
[334314218,1722954093351,-2838.36428748,0.00010497,2]
[334314219,1722954093373,-367.75192544,0.00010499,2]
[334314220,1722954093398,-5147.65270473,0.00010499,2]
[334314221,1722954093420,-150.0,0.00010499,2]
[334314222,1722954093441,-19817.51132645,0.000105,2]
[334314223,1722954148786,1105.77,0.00025,60]
[334314224,1722954236408,500.0,0.00025,60]
[334314225,1722954360405,500.0,0.00025,60]
[334314227,1722954436042,166.5,8.219e-05,2]
[334314228,1722954436429,500.0,0.00025,60]
[334314230,1722954536812,360.0,9.432e-05,2]
[334314238,1722954557409,500.0,0.00025,60]
[334314239,1722954559910,500.0,0.00025,60]
[334314271,1722954631702,-250.0,9.702e-05,2]
[334314272,1722954631715,-154.17002767,9.764e-05,2]
[334314273,1722954631728,-194.76,9.764e-05,2]
[334314274,1722954631745,-15.45898731,9.764e-05,2]
[334314275,1722954631762,-184.54101269,9.764e-05,2]
[334314276,1722954631775,-346.44,9.901e-05,2]
[334314277,1722954631788,-1975.9,9.937e-05,2]
[334314278,1722954631800,-300.0,9.999e-05,2]
[334314279,1722954631813,-170.42026434,0.0001,2]
[334314280,1722954631826,-574.47748452,0.0001,2]
[334314281,1722954631839,-944.086547,0.0001,2]
[334314282,1722954631851,-299.83663058,0.0001,2]
[334314283,1722954631864,-266.6,0.00010039,2]
[334314284,1722954631876,-535.26,0.00010042,2]
[334314285,1722954631889,-200.0,0.00010049,2]
[334314286,1722954631902,-162.27,0.00010077,2]
[334314287,1722954631914,-3162.62,0.00010095,2]
[334314288,1722954631926,-420.73,0.000104,2]
[334314289,1722954631939,-346.5263054,0.000104,2]
[334314290,1722954631951,-420.73,0.000104,2]
[334314291,1722954631963,-6139.24114962,0.000104,2]
[334314293,1722954631976,-166.5,0.00010446,2]
[334314295,1722954631991,-1860.7009197,0.0001049,2]
[334314297,1722954632004,-499.99,0.00010493,2]
[334314300,1722954632016,-1232.9395889,0.00010493,2]
[334314302,1722954632028,-3146.35710437,0.00010498,2]
[334314305,1722954632051,-817.92,0.00010498,2]
[334314308,1722954632066,-846.91369266,0.00010498,2]
[334314310,1722954632079,-154.16539662,0.00010499,2]
[334314318,1722954632141,-91.00255367,0.00010499,2]
[334314320,1722954632153,-150.0,0.00010499,2]
[334314323,1722954632165,-1490.2824963,0.000105,2]
[334314325,1722954632179,-5088.25494012,0.000105,2]
[334314327,1722954632194,-494.33663641,0.000105,2]
[334314339,1722954637579,-154.17002766,9.833e-05,2]
[334314341,1722954637595,-56569.20878092,0.000105,2]
[334314342,1722954637610,-6803.63139366,0.000105,2]
[334314343,1722954637625,-285.49172499,0.000105,2]
[334314344,1722954637650,-163.4453002,0.00010499,2]
[334314345,1722954637663,-2660.9922998,0.000105,2]
[334314346,1722954637677,-652.62040513,0.000105,2]
[334314347,1722954637693,-600.0,0.000105,2]
[334314348,1722954637707,-14560.0,0.000105,2]
[334314349,1722954637733,-484.62835294,0.000105,2]
[334314364,1722954640023,-6136.99102678,0.000105,2]
[334314365,1722954640131,-265.18493594,0.000105,2]
[334314366,1722954640145,-282.04696975,0.000105,2]
[334314367,1722954640158,-566.76354058,0.000105,2]
[334314368,1722954640169,-713.52089121,0.000105,2]
[334314369,1722954640181,-6438.79205681,0.000105,2]
[334314370,1722954640193,-28266.66224005,0.000105,2]
[334314371,1722954640204,-464.49215407,0.000105,2]
[334314372,1722954640294,-3364.89511057,0.000105,2]
[334314373,1722954640306,-543.43566378,0.000105,2]
[334314374,1722954640318,-1477.7260273,0.000105,2]
[334314375,1722954641894,-476.2520301,0.000104,2]
[334314376,1722954641904,-163.2449699,0.000105,2]
[334314382,1722954642634,-154.17002766,9.901e-05,2]
[334314383,1722954642646,-958.55653316,0.000105,2]
[334314384,1722954642683,-636.225,0.000105,2]
[334314385,1722954642695,-22682.16279765,0.000105,2]
[334314386,1722954642707,-1740.63,0.000105,2]
[334314387,1722954642739,-1047.11080373,0.000105,2]
[334314388,1722954642752,-303144.61468863,0.000105,2]
[334314389,1722954642785,-1249020.57655211,0.000105,2]
[334314390,1722954642842,-781.78852125,0.000105,2]
[334314411,1722954646818,-262.80812492,0.000105,2]
[334314412,1722954646830,-1911.75,0.000105,2]
[334314413,1722954646841,-408.47242097,0.000105,2]
[334314414,1722954646944,-644.28818466,0.000105,2]
[334314415,1722954647128,-186.03395818,0.000105,2]
[334314416,1722954647140,-11965.3058923,0.000105,2]
[334314417,1722954647154,-8479.95000001,0.000105,2]
[334314418,1722954647165,-1353.50812905,0.000105,2]
[334314419,1722954647176,-637.525,0.000105,2]
[334314420,1722954647187,-6271.4,0.000105,2]
[334314421,1722954647199,-283339.6903196,0.000105,2]
[334314422,1722954647210,-343.53915486,0.000105,2]
[334314423,1722954647221,-522.01898272,0.000105,2]
[334314424,1722954647232,-2270.66495941,0.000105,2]
[334314425,1722954647244,-76799.52317944,0.000105,2]
[334314655,1722954859557,-196.56350179,0.00010299,2]
[334314656,1722954859578,-9973.60537836,0.00010347,2]
[334314657,1722954859598,-300.0,0.00010399,2]
[334314658,1722954859619,-4152.5815,0.000104,2]
[334314659,1722954859639,-743.3523,0.000104,2]
[334314660,1722954859661,-6305.311,0.000104,2]
[334314661,1722954859682,-171.05456295,0.000104,2]
[334314662,1722954859703,-103.60192902,0.000104,2]
[334314663,1722954867106,-196.56350179,0.000104,2]
[334314664,1722954891532,-571.79,0.00010048,2]
[334314665,1722954891556,-6543.03728664,0.00010497,2]
[334314666,1722954891576,-163.4453002,0.00010499,2]
[334314667,1722954891596,-150.0,0.00010499,2]
[334314668,1722954891617,-3071.72741316,0.000105,2]
[334314671,1722954952961,157.73,8.219e-05,2]
[334314672,1722954990360,10976.77,8.219e-05,2]
[334314673,1722954990381,3377.20907086,8.219e-05,2]
[334314674,1722955107506,3936.28371423,8.219e-05,2]
[334314676,1722955488577,157.73,8.219e-05,2]
[334314686,1722955788288,200.0,9.432e-05,2]
[334314696,1722955832155,-542.56,9.938e-05,2]
[334314698,1722955832165,-180.0,9.946e-05,2]
[334314700,1722955832180,-1635.6374964,9.962e-05,2]
[334314702,1722955832190,-300.0,0.00010346,2]
[334314704,1722955832201,-300.0,0.00010346,2]
[334314706,1722955832211,-3091.8025036,0.00010347,2]
[334314739,1722955833584,-6881.80287476,0.00010347,2]
[334314740,1722955833594,-4152.5815,0.000104,2]
[334314741,1722955833604,-6305.311,0.000104,2]
[334314742,1722955833613,-1624.0857,0.000104,2]
[334314743,1722955833623,-1000.0,0.0001049,2]
[334314744,1722955833633,-1000.0,0.0001049,2]
[334314745,1722955833643,-936.0518984,0.00010493,2]
[334314746,1722955833653,-150.0,0.00010498,2]
[334314747,1722955833663,-163.44530019,0.00010499,2]
[334314748,1722955833674,-1883.21370739,0.00010499,2]
[334314749,1722955833690,-2184.06165463,0.00010499,2]
[334314750,1722955833700,-404728.39061524,0.000105,2]
[334314772,1722955837781,-40671.85641686,0.000105,2]
[334314773,1722955837792,-4228.05295245,0.000105,2]
[334314774,1722955837804,-2811.2613,0.000105,2]
[334314775,1722955837993,-597.20387372,0.000105,2]
[334314778,1722955839909,-1153.62428452,0.000105,2]
[334314779,1722955840168,-5675.2650185,0.000105,2]
[334314780,1722955840254,-893.1325,0.000105,2]
[334314781,1722955840266,-292.036,0.000105,2]
[334314782,1722955840295,-55111.52001129,0.000105,2]
[334314792,1722955842805,-636.49603942,9.962e-05,2]
[334314803,1722955842886,-265.9966997,9.962e-05,2]
[334314806,1722955842898,-733.14475728,9.962e-05,2]
[334314807,1722955842907,-6543.03728664,0.00010497,2]
[334314809,1722955842916,-295868.43264471,0.000105,2]
[334314816,1722955842981,-2370.31702333,0.000105,2]
[334314818,1722955842992,-97187.93512706,0.000105,2]
[334314820,1722955843004,-2080.84151225,0.000105,2]
[334314835,1722955845167,-3814.1610038,0.000105,2]
[334314842,1722955846810,-579.68667827,0.00010347,2]
[334314843,1722955846823,-1795.30375698,0.00010347,2]
[334314844,1722955846835,-552.86,0.00010347,2]
[334314845,1722955846899,-4975.24695691,0.00010347,2]
[334314846,1722955846909,-658.55304309,0.000105,2]
[334314847,1722955846920,-4371.808,0.000105,2]
[334314848,1722955846950,-4333.75300149,0.000105,2]
[334314849,1722955846961,-488.75172962,0.000105,2]
[334314860,1722955939542,151.01,8.219e-05,2]
[334314861,1722955992364,1000.0,0.00026849,120]
[334314862,1722955992428,1000.0,0.00026849,120]
[334314863,1722956000979,500.0,0.00026301,120]
[334314864,1722956006410,201.364553,0.00026507,120]
[334314866,1722956434044,151.01,8.219e-05,2]
[334314867,1722956571539,200.0,9.553e-05,2]
[334314868,1722956593387,1000.0,0.00026849,120]
[334314869,1722956593753,1000.0,0.00026849,120]
[334314870,1722956602204,500.0,0.00026849,120]
[334314871,1722956605976,1826.75721491,9.511e-05,2]
[334314872,1722956605996,4935.11278509,9.511e-05,2]
[334314873,1722956794924,5064.88721491,9.525e-05,2]
[334314874,1722956794945,10000.0,9.525e-05,2]
[334314875,1722956794967,409.23958509,9.525e-05,2]
[334314876,1722956797538,4821.387791,9.524e-05,2]
[334314892,1722956837451,180.0,9.524e-05,2]
[334314896,1722956876265,768.44,9.485e-05,2]
[334314897,1722956921091,250.0,9.531e-05,2]
[334314898,1722956932894,-8390.30339036,9.573e-05,2]
[334314899,1722956932940,-8390.30339036,9.573e-05,2]
[334314901,1722956932995,-5587.13025519,9.573e-05,2]
[334314906,1722956957970,-1377.52180001,9.573e-05,2]
[334314910,1722956964024,151.01,8.219e-05,2]
[334314945,1722957034125,-104.74116408,9.573e-05,2]
[334314946,1722957034136,-850.24829009,9.65e-05,2]
[334314947,1722957034149,-149.75170991,9.65e-05,2]
[334314948,1722957034160,-364.0,9.678e-05,2]
[334314949,1722957034174,-311.64897485,9.8e-05,2]
[334314950,1722957034223,-108.78102515,9.8e-05,2]
[334314951,1722957034233,-300.0,9.909e-05,2]
[334314952,1722957034243,-1990.05540486,9.909e-05,2]
[334314953,1722957034254,-2933.40559046,9.909e-05,2]
[334314954,1722957034266,-1581.43350637,9.909e-05,2]
[334314955,1722957034278,-104.82953627,9.909e-05,2]
[334314956,1722957034287,-420.73,9.91e-05,2]
[334314957,1722957034296,-530.56,9.91e-05,2]
[334314958,1722957034306,-288.66615169,9.91e-05,2]
[334314959,1722957034318,-132.06384831,9.91e-05,2]
[334314960,1722957034327,-150.68,9.947e-05,2]
[334314961,1722957034337,-150.0,9.947e-05,2]
[334314962,1722957034347,-154.15085818,0.0001,4]
[334314963,1722957034360,-299.99,0.0001,2]
[334314964,1722957034370,-600.0,0.0001,2]
[334314965,1722957034379,-175.18,0.00010046,2]
[334314966,1722957034389,-350.23125282,0.000103,2]
[334314967,1722957034410,-649.76874718,0.000103,2]
[334314968,1722957034422,-150.0,0.00010359,2]
[334314969,1722957034433,-160.43075942,0.0001039,2]
[334314970,1722957034442,-300.1654308,0.0001039,2]
[334314971,1722957034452,-543.9307,0.0001039,2]
[334314972,1722957034462,-183.08264088,0.00010393,2]
[334314973,1722957034471,-1173.51,0.00010399,2]
[334314974,1722957034480,-150.0,0.00010399,2]
[334314975,1722957034490,-2022.4053,0.000104,2]
[334314976,1722957034499,-620.256,0.000104,2]
[334314977,1722957034507,-1601.4227,0.000104,2]
[334314978,1722957034516,-416.94,0.000104,2]
[334314979,1722957034524,-177.69822982,0.000104,2]
[334314980,1722957034532,-108.84163087,0.000104,2]
[334314981,1722957034544,-74.58255313,0.000104,2]
[334314982,1722957034553,-11070.39988457,0.000104,2]
[334314983,1722957034562,-200.0,0.00010473,2]
[334314984,1722957034571,-200.0,0.00010473,2]
[334314985,1722957034580,-200.0,0.00010473,2]
[334314986,1722957034590,-173569.32729652,0.0001049,3]
[334314987,1722957034601,-517.85511205,0.0001049,3]
[334314988,1722957034612,-820.87408869,0.0001049,3]
[334314995,1722957038134,-892.04452683,9.962e-05,2]
[334314996,1722957038143,-472.47133978,0.0001049,3]
[334314997,1722957038155,-6336.6802766,0.0001049,3]
[334314998,1722957038166,-2062.57521593,0.0001049,3]
[334314999,1722957038409,-12735.18000005,0.0001049,3]
[334315002,1722957038420,-166426.59907507,0.0001049,3]
[334315003,1722957040075,-7193.68709618,0.0001049,3]
[334315004,1722957040208,-3474.04327968,0.0001049,3]
[334315006,1722957040222,-3094.16293897,0.0001049,3]
[334315007,1722957040235,-16876.40537994,0.0001049,3]
[334315008,1722957040249,-19067.80124532,0.0001049,3]
[334315009,1722957040263,-186420.41431062,0.0001049,3]
[334315011,1722957040275,-2737.26,0.0001049,2]
[334315012,1722957040286,-1965.6711126,0.00010493,2]
[334315013,1722957040296,-213.7058919,0.00010493,2]
[334315014,1722957040308,-5119.0094037,0.00010493,2]
[334315015,1722957040318,-794.255021,0.00010493,2]
[334315016,1722957040328,-6722.05925322,0.00010497,2]
[334315017,1722957040338,-41640.76532841,0.000105,2]
[334315018,1722957040350,-23503.67446206,0.000105,2]
[334315019,1722957040362,-166966.58902582,0.000105,2]
[334315020,1722957040417,-5996.52787957,0.000105,2]
[334315021,1722957040579,-349.60675602,0.000105,2]
[334315022,1722957040591,-64234.12931988,0.000105,2]
[334315056,1722957043111,-945.05735986,0.000105,2]
[334315062,1722957043209,-302411.46993135,0.000105,2]
[334315063,1722957043220,-1190.0,0.000105,2]